[Event "Titled Tuesday Blitz March 21 Early 2023"]
[White "Lesbekova, Assel"]
[Black "Gontcharov, Vladislav"]
[WhiteFideId "13713248"]
[BlackFideId "4123492"]
[WhiteElo "1799"]
[BlackElo "2470"]
[Result "0-1"]
[Round "03"]
[TimeControl "180+2"]
[Date "2023.03.21"]
[WhiteClock "0:00:23"]
[BlackClock "0:00:22"]

1. e4 {[%clk 0:02:59]}  e6 {[%clk 0:02:58]} 2. d4 {[%clk 0:02:59]}  d5 {[%clk 0:02:58]} 3. Bd3 {[%clk 0:02:58]}  dxe4 {[%clk 0:02:57]} 4. Bxe4 {[%clk 0:02:59]}  Nf6 {[%clk 0:02:57]} 5. Bf3 {[%clk 0:02:59]}  c5 {[%clk 0:02:57]} 6. Ne2 {[%clk 0:03:00]}  Nc6 {[%clk 0:02:57]} 7. Be3 {[%clk 0:02:59]}  cxd4 {[%clk 0:02:54]} 8. Nxd4 {[%clk 0:02:59]}  Ne5 {[%clk 0:02:48]} 9. Be2 {[%clk 0:02:59]}  Be7 {[%clk 0:02:45]} 10. O-O {[%clk 0:02:59]}  O-O {[%clk 0:02:44]} 11. c4 {[%clk 0:02:59]}  Bd7 {[%clk 0:02:30]} 12. Nc3 {[%clk 0:02:59]}  Nc6 {[%clk 0:02:24]} 13. Bf3 {[%clk 0:02:47]}  Qc8 {[%clk 0:02:21]} 14. Ndb5 {[%clk 0:02:43]}  Ne5 {[%clk 0:02:17]} 15. b3 {[%clk 0:02:19]}  Nxf3+ {[%clk 0:02:14]} 16. Qxf3 {[%clk 0:02:17]}  Bc6 {[%clk 0:02:13]} 17. Qg3 {[%clk 0:02:13]}  a6 {[%clk 0:01:47]} 18. Nd6 {[%clk 0:01:49]}  Bxd6 {[%clk 0:01:45]} 19. Qxd6 {[%clk 0:01:48]}  Rd8 {[%clk 0:01:44]} 20. Qg3 {[%clk 0:01:46]}  Ne4 {[%clk 0:01:44]} 21. Nxe4 {[%clk 0:01:44]}  Bxe4 {[%clk 0:01:45]} 22. Rad1 {[%clk 0:01:42]}  Qc6 {[%clk 0:01:45]} 23. f3 {[%clk 0:01:37]}  Bg6 {[%clk 0:01:44]} 24. Qf2 {[%clk 0:01:31]}  b5 {[%clk 0:01:40]} 25. c5 {[%clk 0:01:29]}  b4 {[%clk 0:01:40]} 26. Rd2 {[%clk 0:01:22]}  a5 {[%clk 0:01:30]} 27. Rfd1 {[%clk 0:01:22]}  Rxd2 {[%clk 0:01:30]} 28. Qxd2 {[%clk 0:01:23]}  h6 {[%clk 0:01:16]} 29. Qd6 {[%clk 0:01:19]}  Rc8 {[%clk 0:01:10]} 30. Qd7 {[%clk 0:01:16]}  Qxd7 {[%clk 0:00:59]} 31. Rxd7 {[%clk 0:01:17]}  Bb1 {[%clk 0:00:58]} 32. Rd2 {[%clk 0:01:14]}  Kf8 {[%clk 0:00:58]} 33. Bf4 {[%clk 0:01:07]}  Ke8 {[%clk 0:00:57]} 34. Bd6 {[%clk 0:01:07]}  f6 {[%clk 0:00:54]} 35. f4 {[%clk 0:01:05]}  Be4 {[%clk 0:00:52]} 36. Kf2 {[%clk 0:01:04]}  Bc6 {[%clk 0:00:52]} 37. Ke3 {[%clk 0:01:02]}  Ra8 {[%clk 0:00:48]} 38. Bc7 {[%clk 0:00:57]}  Bd5 {[%clk 0:00:48]} 39. f5 {[%clk 0:00:56]}  Kf7 {[%clk 0:00:47]} 40. fxe6+ {[%clk 0:00:52]}  Kxe6 {[%clk 0:00:47]} 41. Kd4 {[%clk 0:00:42]}  f5 {[%clk 0:00:42]} 42. g4 {[%clk 0:00:36]}  g6 {[%clk 0:00:41]} 43. Bf4 {[%clk 0:00:30]}  h5 {[%clk 0:00:32]} 44. gxf5+ {[%clk 0:00:27]}  gxf5 {[%clk 0:00:31]} 45. Re2+ {[%clk 0:00:27]}  Be4 {[%clk 0:00:31]} 46. Kc4 {[%clk 0:00:26]}  Kd7 {[%clk 0:00:27]} 47. Kb5 {[%clk 0:00:26]}  Bd3+ {[%clk 0:00:27]} 48. Kb6 {[%clk 0:00:22]}  Bxe2 {[%clk 0:00:27]} 49. c6+ {[%clk 0:00:23]}  Kc8 {[%clk 0:00:22]} 0-1


[Site "https://www.chess.com"]

[Event "Titled Tuesday Blitz March 21 Early 2023"]
[White "Alex_Sahakyan2006"]
[Black "Ardila, Oscar Humberto"]
[BlackFideId "4404742"]
[WhiteElo "2613"]
[BlackElo "1911"]
[Result "1-0"]
[Round "03"]
[TimeControl "180+2"]
[Date "2023.03.21"]
[WhiteClock "0:00:04"]
[BlackClock "0:00:01"]

1. e4 {[%clk 0:03:00]}  e5 {[%clk 0:02:59]} 2. Nf3 {[%clk 0:03:00]}  Nf6 {[%clk 0:03:00]} 3. d3 {[%clk 0:02:57]}  Nc6 {[%clk 0:02:59]} 4. g3 {[%clk 0:02:57]}  g6 {[%clk 0:02:57]} 5. Bg2 {[%clk 0:02:56]}  Bg7 {[%clk 0:02:57]} 6. O-O {[%clk 0:02:56]}  O-O {[%clk 0:02:57]} 7. c3 {[%clk 0:02:56]}  d6 {[%clk 0:02:57]} 8. h3 {[%clk 0:02:55]}  Nh5 {[%clk 0:02:57]} 9. b4 {[%clk 0:02:50]}  a6 {[%clk 0:02:56]} 10. a4 {[%clk 0:02:51]}  Bd7 {[%clk 0:02:48]} 11. Ra3 {[%clk 0:02:32]}  Qe8 {[%clk 0:02:47]} 12. b5 {[%clk 0:02:31]}  Nd8 {[%clk 0:02:37]} 13. c4 {[%clk 0:02:16]}  Ne6 {[%clk 0:02:30]} 14. Nc3 {[%clk 0:02:04]}  Nc5 {[%clk 0:02:26]} 15. Nd5 {[%clk 0:02:03]}  Qd8 {[%clk 0:02:08]} 16. Nh4 {[%clk 0:01:37]}  c6 {[%clk 0:02:04]} 17. bxc6 {[%clk 0:01:34]}  bxc6 {[%clk 0:02:03]} 18. Nc3 {[%clk 0:01:29]}  Rb8 {[%clk 0:01:58]} 19. Nf5 {[%clk 0:01:27]}  Be6 {[%clk 0:01:17]} 20. Nxg7 {[%clk 0:01:24]}  Kxg7 {[%clk 0:01:12]} 21. Be3 {[%clk 0:01:05]}  Qa5 {[%clk 0:01:08]} 22. d4 {[%clk 0:00:23]}  Bxc4 {[%clk 0:00:44]} 23. dxc5 {[%clk 0:00:20]}  Bxf1 {[%clk 0:00:44]} 24. Bxf1 {[%clk 0:00:20]}  dxc5 {[%clk 0:00:44]} 25. Qc1 {[%clk 0:00:20]}  Kg8 {[%clk 0:00:35]} 26. Ra2 {[%clk 0:00:18]}  Rb3 {[%clk 0:00:33]} 27. Rc2 {[%clk 0:00:18]}  Rfb8 {[%clk 0:00:30]} 28. Kh2 {[%clk 0:00:18]}  Ng7 {[%clk 0:00:26]} 29. Bc4 {[%clk 0:00:17]}  R3b4 {[%clk 0:00:23]} 30. Ba2 {[%clk 0:00:17]}  R8b7 {[%clk 0:00:17]} 31. Qd2 {[%clk 0:00:16]}  Rd4 {[%clk 0:00:14]} 32. Bxd4 {[%clk 0:00:11]}  exd4 {[%clk 0:00:14]} 33. Nb1 {[%clk 0:00:12]}  Qxa4 {[%clk 0:00:13]} 34. Rb2 {[%clk 0:00:07]}  Rb5 {[%clk 0:00:09]} 35. Qc2 {[%clk 0:00:06]}  Qa5 {[%clk 0:00:07]} 36. Qc4 {[%clk 0:00:05]}  Qc7 {[%clk 0:00:05]} 37. Re2 {[%clk 0:00:04]}  Ne6 {[%clk 0:00:04]} 38. f4 {[%clk 0:00:04]}  Rb4 {[%clk 0:00:04]} 39. Qc1 {[%clk 0:00:03]}  Qb6 {[%clk 0:00:04]} 40. f5 {[%clk 0:00:04]}  Ng7 {[%clk 0:00:04]} 41. f6 {[%clk 0:00:04]}  Ne8 {[%clk 0:00:04]} 42. Qh6 {[%clk 0:00:03]}  Rb2 {[%clk 0:00:03]} 43. Rf2 {[%clk 0:00:01]}  Rxf2+ {[%clk 0:00:03]} 44. Kg1 {[%clk 0:00:01]}  d3 {[%clk 0:00:04]} 45. Kxf2 {[%clk 0:00:01]}  c4+ {[%clk 0:00:04]} 46. Qe3 {[%clk 0:00:01]}  Qb2+ {[%clk 0:00:04]} 47. Qd2 {[%clk 0:00:01]}  Qb6+ {[%clk 0:00:02]} 48. Kf3 {[%clk 0:00:01]}  c5 {[%clk 0:00:02]} 49. Qc3 {[%clk 0:00:01]}  Qd6 {[%clk 0:00:02]} 50. Qxc4 {[%clk 0:00:01]}  Qxf6+ {[%clk 0:00:02]} 51. Ke3 {[%clk 0:00:02]}  Qg5+ {[%clk 0:00:02]} 52. Kxd3 {[%clk 0:00:02]}  Qxg3+ {[%clk 0:00:02]} 53. Kc2 {[%clk 0:00:03]}  Qf2+ {[%clk 0:00:03]} 54. Nd2 {[%clk 0:00:03]}  Nd6 {[%clk 0:00:01]} 55. Qd5 {[%clk 0:00:04]} 1-0


[Site "https://www.chess.com"]

[Event "Titled Tuesday Blitz March 21 Early 2023"]
[White "Fabris, Alberto"]
[Black "MKlose11"]
[WhiteFideId "801348"]
[WhiteElo "2207"]
[BlackElo "2601"]
[Result "0-1"]
[Round "03"]
[TimeControl "180+2"]
[Date "2023.03.21"]
[WhiteClock "0:00:01"]
[BlackClock "0:00:29"]

1. e4 {[%clk 0:03:00]}  e6 {[%clk 0:02:58]} 2. d4 {[%clk 0:03:00]}  d5 {[%clk 0:02:58]} 3. Nc3 {[%clk 0:03:00]}  Bb4 {[%clk 0:02:58]} 4. e5 {[%clk 0:03:00]}  Ne7 {[%clk 0:02:58]} 5. a3 {[%clk 0:03:00]}  Bxc3+ {[%clk 0:02:57]} 6. bxc3 {[%clk 0:03:01]}  c5 {[%clk 0:02:58]} 7. Nf3 {[%clk 0:02:59]}  Nbc6 {[%clk 0:02:58]} 8. Be2 {[%clk 0:02:58]}  O-O {[%clk 0:02:46]} 9. O-O {[%clk 0:02:58]}  Qc7 {[%clk 0:02:45]} 10. Bf4 {[%clk 0:02:33]}  Na5 {[%clk 0:02:38]} 11. Re1 {[%clk 0:02:21]}  cxd4 {[%clk 0:02:38]} 12. cxd4 {[%clk 0:02:20]}  Nc4 {[%clk 0:02:38]} 13. Bd3 {[%clk 0:02:17]}  Nb2 {[%clk 0:02:37]} 14. Qd2 {[%clk 0:02:16]}  Nxd3 {[%clk 0:02:37]} 15. Qxd3 {[%clk 0:02:12]}  Bd7 {[%clk 0:02:33]} 16. Ng5 {[%clk 0:02:04]}  Ng6 {[%clk 0:02:33]} 17. Bg3 {[%clk 0:02:03]}  Rfc8 {[%clk 0:02:32]} 18. Rac1 {[%clk 0:01:58]}  Qc3 {[%clk 0:02:29]} 19. Re3 {[%clk 0:01:47]}  Qxd3 {[%clk 0:02:28]} 20. Rxd3 {[%clk 0:01:46]}  Rc4 {[%clk 0:02:28]} 21. c3 {[%clk 0:01:42]}  Rac8 {[%clk 0:02:26]} 22. Nf3 {[%clk 0:01:36]}  Ne7 {[%clk 0:02:14]} 23. Nd2 {[%clk 0:01:31]}  Ra4 {[%clk 0:02:14]} 24. Ra1 {[%clk 0:01:30]}  Nc6 {[%clk 0:02:13]} 25. Nb3 {[%clk 0:01:28]}  b6 {[%clk 0:02:12]} 26. f3 {[%clk 0:01:21]}  h6 {[%clk 0:02:12]} 27. Be1 {[%clk 0:01:19]}  Nd8 {[%clk 0:02:09]} 28. Kf2 {[%clk 0:01:15]}  Nb7 {[%clk 0:02:09]} 29. Ke3 {[%clk 0:01:11]}  Bb5 {[%clk 0:02:09]} 30. Rdd1 {[%clk 0:01:11]}  Bc4 {[%clk 0:02:09]} 31. Rdb1 {[%clk 0:00:59]}  Bxb3 {[%clk 0:02:09]} 32. Rxb3 {[%clk 0:00:58]}  Na5 {[%clk 0:01:58]} 33. Rb4 {[%clk 0:00:54]}  Nc4+ {[%clk 0:01:57]} 34. Kd3 {[%clk 0:00:52]}  Ra5 {[%clk 0:01:58]} 35. a4 {[%clk 0:00:48]}  Kf8 {[%clk 0:01:56]} 36. Bd2 {[%clk 0:00:47]}  Ke8 {[%clk 0:01:54]} 37. Rab1 {[%clk 0:00:40]}  Kd7 {[%clk 0:01:53]} 38. Bc1 {[%clk 0:00:39]}  h5 {[%clk 0:01:50]} 39. h4 {[%clk 0:00:36]}  f6 {[%clk 0:01:50]} 40. exf6 {[%clk 0:00:31]}  gxf6 {[%clk 0:01:50]} 41. g3 {[%clk 0:00:24]}  Rg8 {[%clk 0:01:48]} 42. Bf4 {[%clk 0:00:23]}  e5 {[%clk 0:01:48]} 43. dxe5 {[%clk 0:00:23]}  fxe5 {[%clk 0:01:49]} 44. Bg5 {[%clk 0:00:23]}  Kd6 {[%clk 0:01:48]} 45. Rf1 {[%clk 0:00:20]}  Rc5 {[%clk 0:01:46]} 46. g4 {[%clk 0:00:19]}  Rh8 {[%clk 0:01:35]} 47. gxh5 {[%clk 0:00:18]}  Rxh5 {[%clk 0:01:36]} 48. f4 {[%clk 0:00:16]}  e4+ {[%clk 0:01:34]} 49. Ke2 {[%clk 0:00:17]}  Na5 {[%clk 0:01:29]} 50. f5 {[%clk 0:00:15]}  Nc6 {[%clk 0:01:23]} 51. Rb3 {[%clk 0:00:15]}  Ne5 {[%clk 0:01:18]} 52. f6 {[%clk 0:00:14]}  Nf7 {[%clk 0:01:18]} 53. Rg1 {[%clk 0:00:14]}  Ke5 {[%clk 0:01:15]} 54. Ke3 {[%clk 0:00:14]}  Rh8 {[%clk 0:01:13]} 55. Ra3 {[%clk 0:00:12]}  Rhc8 {[%clk 0:01:13]} 56. Rc1 {[%clk 0:00:12]}  Rh8 {[%clk 0:00:58]} 57. Rg1 {[%clk 0:00:10]}  Rc6 {[%clk 0:00:57]} 58. Rb3 {[%clk 0:00:10]}  a6 {[%clk 0:00:49]} 59. Ra3 {[%clk 0:00:09]}  b5 {[%clk 0:00:46]} 60. axb5 {[%clk 0:00:10]}  axb5 {[%clk 0:00:47]} 61. Rb3 {[%clk 0:00:10]}  Rc4 {[%clk 0:00:46]} 62. Kd2 {[%clk 0:00:09]}  Rc5 {[%clk 0:00:43]} 63. Rb4 {[%clk 0:00:08]}  Ra8 {[%clk 0:00:42]} 64. Rb2 {[%clk 0:00:08]}  Ra3 {[%clk 0:00:40]} 65. Rc2 {[%clk 0:00:06]}  Rc4 {[%clk 0:00:37]} 66. Rg3 {[%clk 0:00:04]}  b4 {[%clk 0:00:35]} 67. h5 {[%clk 0:00:02]}  Raxc3 {[%clk 0:00:28]} 68. Rcxc3 {[%clk 0:00:01]}  Rxc3 {[%clk 0:00:29]} 0-1


[Site "https://www.chess.com"]

[Event "Titled Tuesday Blitz March 21 Early 2023"]
[White "Lukiyanchuk, Vladislav"]
[Black "Rose, Felix"]
[WhiteFideId "14127113"]
[BlackFideId "5105722"]
[WhiteElo "2345"]
[BlackElo "2039"]
[Result "1-0"]
[Round "03"]
[TimeControl "180+2"]
[Date "2023.03.21"]
[WhiteClock "0:00:59"]
[BlackClock "0:00:03"]

1. d4 {[%clk 0:03:00]}  Nf6 {[%clk 0:02:59]} 2. Bg5 {[%clk 0:03:00]}  d5 {[%clk 0:02:58]} 3. Nd2 {[%clk 0:03:00]}  Nbd7 {[%clk 0:02:55]} 4. e3 {[%clk 0:02:59]}  c6 {[%clk 0:02:55]} 5. Ngf3 {[%clk 0:02:58]}  h6 {[%clk 0:02:55]} 6. Bh4 {[%clk 0:02:58]}  Qb6 {[%clk 0:02:55]} 7. Nb3 {[%clk 0:02:57]}  a5 {[%clk 0:02:52]} 8. Rb1 {[%clk 0:02:56]}  a4 {[%clk 0:02:51]} 9. Nbd2 {[%clk 0:02:55]}  e6 {[%clk 0:02:42]} 10. Bd3 {[%clk 0:02:54]}  Bd6 {[%clk 0:02:42]} 11. O-O {[%clk 0:02:54]}  O-O {[%clk 0:02:42]} 12. c4 {[%clk 0:02:53]}  Qa7 {[%clk 0:02:37]} 13. e4 {[%clk 0:02:43]}  Nxe4 {[%clk 0:02:32]} 14. Nxe4 {[%clk 0:02:43]}  dxe4 {[%clk 0:02:33]} 15. Bxe4 {[%clk 0:02:44]}  e5 {[%clk 0:02:12]} 16. Bc2 {[%clk 0:02:42]}  exd4 {[%clk 0:02:03]} 17. Nxd4 {[%clk 0:02:40]}  Ne5 {[%clk 0:01:35]} 18. Nxc6 {[%clk 0:02:32]}  bxc6 {[%clk 0:01:27]} 19. Qxd6 {[%clk 0:02:31]}  Re8 {[%clk 0:01:02]} 20. Rfe1 {[%clk 0:02:26]}  f6 {[%clk 0:00:54]} 21. Bg3 {[%clk 0:01:52]}  Ba6 {[%clk 0:00:39]} 22. Bxe5 {[%clk 0:01:47]}  Rad8 {[%clk 0:00:24]} 23. Qxc6 {[%clk 0:01:39]}  fxe5 {[%clk 0:00:13]} 24. Rbd1 {[%clk 0:01:26]}  Rf8 {[%clk 0:00:09]} 25. c5 {[%clk 0:01:13]}  Rc8 {[%clk 0:00:06]} 26. Qe6+ {[%clk 0:01:12]}  Kh8 {[%clk 0:00:07]} 27. Qg6 {[%clk 0:01:09]}  Kg8 {[%clk 0:00:03]} 28. Qh7+ {[%clk 0:01:07]}  Kf7 {[%clk 0:00:03]} 29. Bg6+ {[%clk 0:01:07]}  Kf6 {[%clk 0:00:03]} 30. Rd6+ {[%clk 0:01:07]}  Kg5 {[%clk 0:00:03]} 31. Bc2 {[%clk 0:01:01]}  Qxc5 {[%clk 0:00:03]} 32. Qg6+ {[%clk 0:00:59]}  Kf4 {[%clk 0:00:03]} 33. Qg3# {[%clk 0:00:59]} 1-0


[Site "https://www.chess.com"]

[Event "Titled Tuesday Blitz March 21 Early 2023"]
[White "Diaz Rosas, Julio Cesar"]
[Black "lolliNOPE"]
[WhiteFideId "5105099"]
[WhiteElo "2270"]
[BlackElo "2024"]
[Result "1/2-1/2"]
[Round "03"]
[TimeControl "180+2"]
[Date "2023.03.21"]
[WhiteClock "0:00:15"]
[BlackClock "0:00:55"]

1. e4 {[%clk 0:03:00]}  c6 {[%clk 0:02:57]} 2. d4 {[%clk 0:03:00]}  d5 {[%clk 0:02:58]} 3. exd5 {[%clk 0:02:58]}  cxd5 {[%clk 0:02:59]} 4. Bd3 {[%clk 0:02:58]}  Nc6 {[%clk 0:02:58]} 5. c3 {[%clk 0:02:49]}  Nf6 {[%clk 0:02:58]} 6. h3 {[%clk 0:02:49]}  g6 {[%clk 0:02:58]} 7. Nf3 {[%clk 0:02:49]}  Bf5 {[%clk 0:02:58]} 8. Bxf5 {[%clk 0:02:47]}  gxf5 {[%clk 0:02:59]} 9. O-O {[%clk 0:02:48]}  e6 {[%clk 0:02:59]} 10. Bg5 {[%clk 0:02:48]}  Be7 {[%clk 0:02:59]} 11. Bxf6 {[%clk 0:02:46]}  Bxf6 {[%clk 0:02:59]} 12. Re1 {[%clk 0:02:47]}  Qc7 {[%clk 0:02:54]} 13. Na3 {[%clk 0:02:43]}  O-O-O {[%clk 0:02:49]} 14. Rc1 {[%clk 0:02:40]}  Kb8 {[%clk 0:02:46]} 15. b4 {[%clk 0:02:38]}  Rhg8 {[%clk 0:02:44]} 16. Qd2 {[%clk 0:02:36]}  Rg6 {[%clk 0:02:40]} 17. Nb5 {[%clk 0:02:35]}  Qe7 {[%clk 0:02:32]} 18. Qf4+ {[%clk 0:02:32]}  Kc8 {[%clk 0:02:25]} 19. c4 {[%clk 0:02:30]}  dxc4 {[%clk 0:02:19]} 20. Rxc4 {[%clk 0:02:31]}  a6 {[%clk 0:02:04]} 21. Na7+ {[%clk 0:02:20]}  Kd7 {[%clk 0:02:04]} 22. Nxc6 {[%clk 0:02:20]}  bxc6 {[%clk 0:02:04]} 23. Rec1 {[%clk 0:02:18]}  Rc8 {[%clk 0:02:00]} 24. Ne5+ {[%clk 0:02:18]}  Bxe5 {[%clk 0:02:00]} 25. dxe5 {[%clk 0:02:19]}  Qg5 {[%clk 0:01:49]} 26. Qxg5 {[%clk 0:01:52]}  Rxg5 {[%clk 0:01:49]} 27. f4 {[%clk 0:01:52]}  Rg3 {[%clk 0:01:48]} 28. Rd4+ {[%clk 0:01:44]}  Ke7 {[%clk 0:01:47]} 29. Rd6 {[%clk 0:01:40]}  Ra3 {[%clk 0:01:46]} 30. Rdxc6 {[%clk 0:01:37]}  Rxc6 {[%clk 0:01:46]} 31. Rxc6 {[%clk 0:01:37]}  Rxa2 {[%clk 0:01:46]} 32. Rc7+ {[%clk 0:01:37]}  Kf8 {[%clk 0:01:46]} 33. Ra7 {[%clk 0:01:34]}  Ra4 {[%clk 0:01:42]} 34. g3 {[%clk 0:01:30]}  Kg7 {[%clk 0:01:40]} 35. Kf2 {[%clk 0:01:22]}  h5 {[%clk 0:01:38]} 36. Ke3 {[%clk 0:01:21]}  Ra3+ {[%clk 0:01:35]} 37. Kd4 {[%clk 0:01:19]}  Rxg3 {[%clk 0:01:34]} 38. Rxa6 {[%clk 0:01:19]}  Rf3 {[%clk 0:01:35]} 39. b5 {[%clk 0:01:14]}  Rxf4+ {[%clk 0:01:35]} 40. Kc5 {[%clk 0:01:14]}  Rf1 {[%clk 0:01:35]} 41. Ra4 {[%clk 0:01:07]}  f4 {[%clk 0:01:28]} 42. b6 {[%clk 0:01:01]}  f3 {[%clk 0:01:27]} 43. b7 {[%clk 0:00:52]}  f2 {[%clk 0:01:19]} 44. Rf4 {[%clk 0:00:46]}  Rb1 {[%clk 0:01:16]} 45. Kc6 {[%clk 0:00:46]}  Rc1+ {[%clk 0:01:01]} 46. Kd6 {[%clk 0:00:40]}  Rb1 {[%clk 0:01:01]} 47. Kc7 {[%clk 0:00:39]}  Rc1+ {[%clk 0:01:02]} 48. Kd8 {[%clk 0:00:35]}  Rb1 {[%clk 0:01:02]} 49. Kc7 {[%clk 0:00:25]}  Rc1+ {[%clk 0:01:02]} 50. Kd8 {[%clk 0:00:19]}  Rb1 {[%clk 0:01:00]} 51. Rxf2 {[%clk 0:00:16]}  Rxb7 {[%clk 0:01:00]} 52. Rg2+ {[%clk 0:00:17]}  Kh6 {[%clk 0:00:58]} 53. Ke8 {[%clk 0:00:16]}  Rb5 {[%clk 0:00:52]} 54. Kxf7 {[%clk 0:00:16]}  Rxe5 {[%clk 0:00:53]} 55. Rg6+ {[%clk 0:00:16]}  Kh7 {[%clk 0:00:53]} 56. Rg7+ {[%clk 0:00:16]}  Kh6 {[%clk 0:00:53]} 57. Rg6+ {[%clk 0:00:16]}  Kh7 {[%clk 0:00:54]} 58. Rg7+ {[%clk 0:00:16]}  Kh6 {[%clk 0:00:55]} 59. Rg6+ {[%clk 0:00:15]} 1/2-1/2


[Site "https://www.chess.com"]

[Event "Titled Tuesday Blitz March 21 Early 2023"]
[White "Tarnowska, Aleksandra"]
[Black "Sokac, Marko"]
[WhiteFideId "1180967"]
[BlackFideId "14531356"]
[WhiteElo "1776"]
[BlackElo "2355"]
[Result "0-1"]
[Round "03"]
[TimeControl "180+2"]
[Date "2023.03.21"]
[WhiteClock "0:00:02"]
[BlackClock "0:00:17"]

1. e4 {[%clk 0:03:00]}  d6 {[%clk 0:03:00]} 2. d4 {[%clk 0:03:00]}  Nf6 {[%clk 0:03:00]} 3. Nc3 {[%clk 0:02:59]}  c6 {[%clk 0:03:01]} 4. Be3 {[%clk 0:02:56]}  Nbd7 {[%clk 0:02:57]} 5. Qd2 {[%clk 0:02:52]}  e5 {[%clk 0:02:56]} 6. f3 {[%clk 0:02:42]}  Be7 {[%clk 0:02:56]} 7. h4 {[%clk 0:02:42]}  b5 {[%clk 0:02:53]} 8. g4 {[%clk 0:02:41]}  b4 {[%clk 0:02:51]} 9. Nce2 {[%clk 0:02:39]}  a5 {[%clk 0:02:50]} 10. Nh3 {[%clk 0:02:29]}  Nb6 {[%clk 0:02:48]} 11. Ng3 {[%clk 0:02:20]}  g6 {[%clk 0:02:39]} 12. g5 {[%clk 0:01:43]}  Nfd7 {[%clk 0:02:37]} 13. f4 {[%clk 0:01:42]}  Qc7 {[%clk 0:02:34]} 14. f5 {[%clk 0:01:42]}  d5 {[%clk 0:02:30]} 15. f6 {[%clk 0:00:58]}  Bd6 {[%clk 0:02:28]} 16. Ne2 {[%clk 0:00:35]}  Nc4 {[%clk 0:02:26]} 17. Qd3 {[%clk 0:00:36]}  Nxb2 {[%clk 0:02:25]} 18. Qb3 {[%clk 0:00:32]}  Nc4 {[%clk 0:02:23]} 19. exd5 {[%clk 0:00:25]}  cxd5 {[%clk 0:02:24]} 20. Bg2 {[%clk 0:00:24]}  e4 {[%clk 0:02:10]} 21. O-O {[%clk 0:00:21]}  a4 {[%clk 0:02:08]} 22. Qb1 {[%clk 0:00:10]}  Nxe3 {[%clk 0:02:07]} 23. Nef4 {[%clk 0:00:04]}  Bb7 {[%clk 0:01:54]} 24. Rf2 {[%clk 0:00:03]}  Nxg2 {[%clk 0:01:47]} 25. Rxg2 {[%clk 0:00:02]}  Bxf4 {[%clk 0:01:47]} 26. Nxf4 {[%clk 0:00:01]}  Qxf4 {[%clk 0:01:47]} 27. Qxb4 {[%clk 0:00:02]}  O-O-O {[%clk 0:01:42]} 28. c4 {[%clk 0:00:01]}  Qe3+ {[%clk 0:01:40]} 29. Kh1 {[%clk 0:00:01]}  Qxd4 {[%clk 0:01:40]} 30. Rb1 {[%clk 0:00:01]}  Qb6 {[%clk 0:00:56]} 31. Qxb6 {[%clk 0:00:01]}  Nxb6 {[%clk 0:00:56]} 32. Rxb6 {[%clk 0:00:02]}  h6 {[%clk 0:00:54]} 33. Rgb2 {[%clk 0:00:02]}  Rd7 {[%clk 0:00:54]} 34. c5 {[%clk 0:00:01]}  Rc7 {[%clk 0:00:52]} 35. c6 {[%clk 0:00:01]}  Bxc6 {[%clk 0:00:35]} 36. Rb8+ {[%clk 0:00:02]}  Kd7 {[%clk 0:00:35]} 37. Rxh8 {[%clk 0:00:02]}  hxg5 {[%clk 0:00:36]} 38. hxg5 {[%clk 0:00:02]}  d4 {[%clk 0:00:37]} 39. Rh7 {[%clk 0:00:03]}  Ke6 {[%clk 0:00:35]} 40. Rb4 {[%clk 0:00:03]}  d3 {[%clk 0:00:33]} 41. Rd4 {[%clk 0:00:02]}  Ke5 {[%clk 0:00:24]} 42. Rd8 {[%clk 0:00:02]}  Bd5 {[%clk 0:00:18]} 43. Kg1 {[%clk 0:00:02]}  e3 {[%clk 0:00:17]} 44. Rh2 {[%clk 0:00:02]}  Rc1# {[%clk 0:00:17]} 0-1


[Site "https://www.chess.com"]

[Event "Titled Tuesday Blitz March 21 Early 2023"]
[White "Lwanga, Aguda"]
[Black "Ordekalog"]
[WhiteFideId "10801529"]
[WhiteElo "1475"]
[BlackElo "2588"]
[Result "0-1"]
[Round "03"]
[TimeControl "180+2"]
[Date "2023.03.21"]
[WhiteClock "0:01:48"]
[BlackClock "0:02:09"]

1. e4 {[%clk 0:02:56]}  d5 {[%clk 0:02:58]} 2. exd5 {[%clk 0:02:55]}  Qxd5 {[%clk 0:02:57]} 3. d4 {[%clk 0:02:53]}  e5 {[%clk 0:02:56]} 4. dxe5 {[%clk 0:02:49]}  Qxd1+ {[%clk 0:02:56]} 5. Kxd1 {[%clk 0:02:48]}  Nc6 {[%clk 0:02:55]} 6. Bb5 {[%clk 0:02:47]}  Bd7 {[%clk 0:02:54]} 7. Bxc6 {[%clk 0:02:45]}  Bxc6 {[%clk 0:02:54]} 8. Nf3 {[%clk 0:02:43]}  O-O-O+ {[%clk 0:02:53]} 9. Ke2 {[%clk 0:02:41]}  Bb5+ {[%clk 0:02:50]} 10. Ke1 {[%clk 0:02:38]}  Bc5 {[%clk 0:02:36]} 11. Nc3 {[%clk 0:02:32]}  Ba6 {[%clk 0:02:34]} 12. Bg5 {[%clk 0:02:26]}  f6 {[%clk 0:02:32]} 13. exf6 {[%clk 0:02:16]}  Nxf6 {[%clk 0:02:32]} 14. Bxf6 {[%clk 0:02:14]}  gxf6 {[%clk 0:02:31]} 15. Nd1 {[%clk 0:02:13]}  Rhe8+ {[%clk 0:02:27]} 16. Ne3 {[%clk 0:02:10]}  f5 {[%clk 0:02:22]} 17. g3 {[%clk 0:02:07]}  Bxe3 {[%clk 0:02:21]} 18. fxe3 {[%clk 0:02:00]}  Rxe3+ {[%clk 0:02:22]} 19. Kf2 {[%clk 0:01:59]}  Re2+ {[%clk 0:02:19]} 20. Kf1 {[%clk 0:01:59]}  Rxc2+ {[%clk 0:02:12]} 21. Kg1 {[%clk 0:01:55]}  Rxb2 {[%clk 0:02:11]} 22. h4 {[%clk 0:01:52]}  Rd3 {[%clk 0:02:09]} 23. Rh2 {[%clk 0:01:48]} 0-1


[Site "https://www.chess.com"]